Cogmind - Beta 13 @@@ ROGUE MODE // 2024.07.09 @ 21:26:53 Player: gigi283 Result: Destroyed by G-47 Trooper with Particle Gun Performance ------------- Evolutions (2) 1000 Regions Visited (3) 600 Robots Destroyed (99) 495 Value Destroyed (2545) 2545 Prototype IDs (7) 140 Alien Tech Used (0) 0 Bonus (540) 540 TOTAL SCORE: 5320 Bonus ------- High Alert Combat Kills 540 Cogmind --------- Core Integrity 0/550 Matter 139/300 Energy 249/300 System Corruption 0% Temperature Critical (525) Movement Treading (160) Location -8/Materials Parts ------- > --- POWER (2) -------- Nuclear Core Light Nuclear Core > --- PROPULSION (3) --- Advanced Treads Medium Treads Medium Treads > --- UTILITY (4) ------ Improved Heat Sink Medium Storage Unit Signal Interpreter Improved Targeting Computer > --- WEAPON (2) ------- Precision Beam Rifle Assault Cannon > --- INVENTORY (10) --- Light Nuclear Core Medium Treads Medium Treads Improved Heat Sink Improved Sensor Array Precision Beam Rifle Shock Bomb Launcher Datajack Mining Laser Scythe Peak State ------------ > --- POWER ------------ Nuclear Core Light Nuclear Core > --- PROPULSION ------- Advanced Treads Medium Treads Medium Treads > --- UTILITY ---------- Medium Storage Unit Signal Interpreter Improved Targeting Computer Improved Propulsion Shielding > --- WEAPON ----------- Precision Beam Rifle Precision Beam Rifle > --- INVENTORY -------- Medium Treads Medium Treads Improved Heat Sink Improved Sensor Array Precision Beam Rifle Assault Cannon Shock Bomb Launcher Datajack Mining Laser Scythe [Rating: 34] Favorites ----------- Power Ion Engine Engine Ion Engine Power Core Nuclear Core Propulsion Wheel Treads Medium Treads Leg Aluminum Leg Wheel Wheel Flight Unit Improved Flight Unit Utility Signal Interpreter Device Improved Heat Sink Storage Medium Storage Unit Processor Signal Interpreter Hackware Hacking Suite Protection Improved Light Armor Plating Weapon Beam Rifle Energy Gun Beam Rifle Energy Cannon Light EM Pulse Cannon Ballistic Gun Light Assault Rifle Ballistic Cannon Assault Cannon Launcher Grenade Launcher Special Weapon Mining Laser Build | -11 -10 -9 -8 ------- Run | Yrd Mat Mat Mat Slots Evolved 4 | . . 2 2 Power 1 | . . . 1 Propulsion 1 | . . . 1 Utility 2 | . . 2 . Weapon . | . . . . Parts Attached 85 | 7 11 37 30 Power 13 | 1 3 4 5 Engine 9 | 1 3 4 1 Core 4 | . . . 4 Reactor . | . . . . Propulsion 29 | 2 3 19 5 Treads 6 | . 1 2 3 Leg 2 | . 1 1 . Wheel 17 | 2 1 12 2 Hover . | . . . . Flight 4 | . . 4 . Utility 14 | 1 2 7 4 Device 5 | . . 4 1 Storage 3 | 1 . 1 1 Processor 3 | . 2 1 . Hackware 1 | . . 1 . Protection 2 | . . . 2 Artifact . | . . . . Weapon 29 | 3 3 7 16 Energy Gun 16 | 3 1 4 8 Energy Cannon 5 | . . 1 4 Ballistic Gun 1 | . 1 . . Ballistic Cannon 1 | . . . 1 Launcher 5 | . 1 2 2 Special Weapon 1 | . . . 1 Impact Weapon . | . . . . Slashing Weapon . | . . . . Piercing Weapon . | . . . . Special Melee Weapon . | . . . . Unidentified Prototypes 3 | . . 2 1 Parts Lost 24 | . 2 11 11 Power 6 | . 2 2 2 Propulsion 8 | . . 5 3 Utility 3 | . . 2 1 Weapon 7 | . . 2 5 Highest Loss Streak 8 | . 1 6 8 To Critical Strikes . | . . . . Average Slot Usage (%) 92 | . 98 94 84 Engine 9 | . 13 10 4 Core 1 | . . . 4 Treads 6 | . 3 . 16 Leg 3 | . 8 2 . Wheel 13 | . 16 18 5 Device 2 | . . 7 . Storage 11 | . 14 11 9 Processor 17 | . 12 19 18 Hackware 2 | . . 3 2 Protection 2 | . . . 6 Energy Gun 14 | . 16 14 13 Energy Cannon 1 | . . . 1 Ballistic Gun 3 | . 10 2 . Launcher 2 | . 1 3 1 Naked Turns . | . . . . Heaviest Build 34 | 12 14 27 34 Greatest Support 78 | 20 20 26 78 Greatest Overweight (x) 7 | . 1 7 7 Average Overweight (x) . | . . . . Largest Inventory Capacity 10 | 8 8 10 10 Average Capacity 9 | 6 8 8 10 Most Carried 10 | 4 6 8 10 Average Carried 5 | 2 3 4 6 Final Capacity 10 | 8 8 10 10 Final Carried 10 | 4 5 5 10 Class Distribution -------------------- 71% | Mutant 28% | Scavenger-Mutant Dominant Class ---------------- Scavenger-Mutant | -10/Materials Mutant | -9/Materials Mutant | -8/Materials Resources | -11 -10 -9 -8 ----------- Run | Yrd Mat Mat Mat Matter Collected 1256 | 225 213 544 274 Remotely . | . . . . Salvage Created 3559 | . 548 1489 1522 Parts 186 | . 32 87 67 Haulers Intercepted 6 | . 1 4 1 Recyclers Shooed 5 | . 3 . 2 Parts Field Recycled . | . . . . Retrieved Matter . | . . . . Parts Self-Destructed . | . . . . Prevented . | . . . . Kills | -11 -10 -9 -8 ------- Run | Yrd Mat Mat Mat Combat Hostiles Destroyed 63 | . 12 28 23 Guns 38 | . 11 14 13 Cannons 3 | . . . 3 AOE 17 | . 1 11 5 Classes Destroyed 13 | . 7 5 1 Worker 10 | . 1 4 5 Builder 4 | . . 3 1 Tunneler 3 | . . 1 2 Hauler 6 | . 1 4 1 Recycler 6 | . 1 3 2 Mechanic 1 | . 1 . . Operator 1 | . . 1 . Watcher 5 | . 2 1 2 Swarmer 16 | . 6 7 3 Grunt 33 | . 6 11 16 Brawler 2 | . . 1 1 Duelist 1 | . . . 1 Sentry 11 | . . 9 2 Best Kill Streak 12 | . 3 10 12 Combat Bots Only 4 | . 3 4 4 Max Kills in Single Turn 3 | . 2 3 2 Gunslinging 1 | . . 1 . Exploded 3 | . 1 3 2 Melee . | . . . . Uniques/NPCs Destroyed . | . . . . Combat | -11 -10 -9 -8 -------- Run | Yrd Mat Mat Mat Hostile Shots Fired 311 | . 63 128 120 Missed 82 | . 13 53 16 Damage Taken 3637 | . 549 1152 1936 Core 939 | . 160 220 559 Absorbed by Shields . | . . . . Redirected to Shielding 107 | . . . 107 Core Remaining (%) 60 | 100 36 45 . Volleys Fired 289 | . 94 107 88 Largest 2 | . 2 2 2 Hottest 140 | . 100 112 140 Shots Fired 499 | . 159 188 152 Gun 429 | . 158 158 113 Cannon 34 | . . 7 27 Launcher 35 | . 1 23 11 Special 1 | . . . 1 Kinetic 98 | . 65 31 2 Thermal 315 | . 83 127 105 Explosive 16 | . 1 15 . Electromagnetic 70 | . 10 15 45 Robot Hit Streak 29 | . 11 17 29 Robot Miss Streak 3 | . 3 3 3 Penetration Max . | . . . . Secondary Targets 7 | . 1 4 2 Max Gunslinging Chain 1 | . 1 1 1 Shots Hit Robots 338 | . 92 134 112 Core Hits 158 | . 29 71 58 Critical Kills 1 | . 1 . . Critical Parts Destroyed . | . . . . Critical Strikes 27 | . 8 7 12 Burn 26 | . 7 7 12 Destroy 1 | . 1 . . Melee Attacks . | . . . . Impact . | . . . . Slashing . | . . . . Piercing . | . . . . Sneak Attacks . | . . . . Combat Hostiles . | . . . . Follow-up Attacks . | . . . . Damage Inflicted 6963 | . 1074 3265 2624 Guns 4027 | . 1029 1526 1472 Cannons 576 | . . 114 462 Explosions 2321 | . 38 1598 685 Melee . | . . . . Ramming 39 | . 7 27 5 Kinetic 514 | . 298 195 21 Thermal 3598 | . 663 1350 1585 Explosive 1512 | . 38 1474 . Electromagnetic 1300 | . 68 219 1013 Impact . | . . . . Slashing . | . . . . Piercing . | . . . . Highest Corruption 3 | . 3 3 . Average Corruption 2 | . 2 2 . Corruption Purged . | . . . . Corruption Blocked . | . . . . Effects 8 | . 6 2 . Message Errors 1 | . 1 . . Matter Fused 2 | . 1 1 . Data Loss (minor) 1 | . 1 . . Data Loss (major) 1 | . 1 . . Misfires 2 | . 1 1 . Weapon Failures 1 | . 1 . . Overload Shots . | . . . . Overflow Damage 291 | . . 228 63 Projectiles 18 | . . . 18 Explosions 273 | . . 228 45 Melee . | . . . . Knockbacks . | . . . . Impact . | . . . . Kinetic . | . . . . Secondary . | . . . . Self-Inflicted Damage 335 | . 3 218 114 Shots 14 | . . 7 7 Rammed 7 | . 2 4 1 Targets Rammed 7 | . 2 4 1 Kicked . | . . . . Crushed . | . . . . Highest Temperature 737 | . 300 434 737 Average Temperature 128 | . 97 89 177 Received Heat Transfer 1350 | . 231 381 738 Effects 53 | . 9 3 41 Shutdowns 9 | . . 1 8 Energy Bleed 5 | . . . 5 Interference 16 | . 8 2 6 Matter Decay 3 | . . . 3 Short Circuit 3 | . 1 . 2 Damage (minor) 5 | . . . 5 Damage (major) 9 | . . . 9 Damage (core) 3 | . . . 3 Siege Activations . | . . . . Robots Corrupted 1 | . . 1 . Combat Hostiles 1 | . . 1 . Parts Fried 6 | . . 1 5 Impact Corruptions . | . . . . Robots Melted 4 | . . 2 2 Combat Hostiles 4 | . . 2 2 Parts Melted 20 | . 1 11 8 Heat Transferred 10536 | . 2479 3948 4109 Parts Sabotaged . | . . . . Parts Stolen . | . . . . Parts Stripped . | . . . . Power Chain Reactions 10 | . . 3 7 Alert | -11 -10 -9 -8 ------- Run | Yrd Mat Mat Mat Peak Influence 1040 | . 317 1040 872 Initial 439 | . . 81 439 Average 454 | . 179 429 701 Maximum Alert Level 3 | . 1 3 3 Low Security (%) 20 | 100 64 6 . Level 1 27 | . 35 49 . Level 2 23 | . . 34 28 Level 3 28 | . . 10 71 Level 4 . | . . . . Level 5 . | . . . . High Security . | . . . . Max Security . | . . . . Squads Dispatched 7 | . 3 1 3 Investigation 3 | . 2 . 1 Extermination . | . . . . Reinforcement 4 | . 1 1 2 Assault . | . . . . Garrison . | . . . . Intercept . | . . . . Searches Triggered . | . . . . Construction Impeded 2 | . . . 2 Haulers Reinforced . | . . . . Active Scanning Responses . | . . . . Cargo Convoy Interrupts . | . . . . Stealth | -11 -10 -9 -8 --------- Run | Yrd Mat Mat Mat Distress Signals 6 | . 1 1 4 Communications Jammed . | . . . . Distress Signals . | . . . . Times Spotted 97 | . 22 39 36 Peak Tracking Total 8 | . 4 8 6 Tactical Retreats 5 | . 1 1 3 Traps | -11 -10 -9 -8 ------- Run | Yrd Mat Mat Mat Traps Triggered 7 | . 4 2 1 Indirectly . | . . . . Trap Hack Attempts . | . . . . Triggered . | . . . . Disarmed . | . . . . Reprogrammed . | . . . . Reused . | . . . . Traps Extracted . | . . . . Installed . | . . . . Triggered . | . . . . Machines | -11 -10 -9 -8 ---------- Run | Yrd Mat Mat Mat Machines Disabled 17 | . . 14 3 Max in Single Turn 5 | . . 5 1 Machines Repaired . | . . . . Machines Dismantled . | . . . . Machines Sabotaged . | . . . . Overloaded Fab Kills . | . . . . Hacking | -11 -10 -9 -8 --------- Run | Yrd Mat Mat Mat Machines Accessed 18 | . 5 6 7 Terminals 17 | . 5 6 6 Fabricators . | . . . . Repair Stations . | . . . . Recycling Units . | . . . . Scanalyzers 1 | . . . 1 Garrison Access . | . . . . Total Hacks 41 | . 10 16 15 Successful 29 | . 6 10 13 Failed 12 | . 4 6 2 Catastrophic 1 | . . . 1 Database Lockouts . | . . . . Manual 24 | . 7 10 7 Terminals 39 | . 10 16 13 Fabricators . | . . . . Repair Stations . | . . . . Recycling Units . | . . . . Scanalyzers 2 | . . . 2 Garrison Access . | . . . . Terminal Hacks 11 | . 2 4 5 Prototype ID Bank 2 | . . 2 . Emergency Access Points 1 | . . 1 . Alert Level 2 | . . . 2 Dispatch Records 1 | . . . 1 Maintenance Status 1 | . 1 . . Zone Layout 4 | . 1 1 2 Fabricator Hacks . | . . . . Repair Station Hacks . | . . . . Recycling Unit Hacks . | . . . . Scanalyzer 2 | . . . 2 Insert Component 1 | . . . 1 Analyze 1 | . . . 1 Garrison Access Hacks . | . . . . Unauthorized Hacks 16 | . 4 6 6 Terminals 16 | . 4 6 6 Botnet 16 | . 4 6 6 Fabricators . | . . . . Repair Stations . | . . . . Recycling Units . | . . . . Scanalyzers . | . . . . Garrison Access . | . . . . Data Cores Recovered . | . . . . Used . | . . . . Hacking Detections 11 | . 3 2 6 Full Trace Events . | . . . . Feedback Events . | . . . . Feedback Blocked . | . . . . Robot Schematics Acquired . | . . . . Robots Built . | . . . . Authchips . | . . . . Time . | . . . . Total Robot Build Rating . | . . . . Part Schematics Acquired 1 | . . . 1 Parts Built . | . . . . Authchips . | . . . . Time . | . . . . Total Part Build Rating . | . . . . Parts Repaired . | . . . . Time . | . . . . Parts Recycled . | . . . . Recycled Matter . | . . . . Retrieved Matter . | . . . . Retrieved Components . | . . . . Parts Scanalyzed 1 | . . . 1 Part Schematics Acquired 1 | . . . 1 Parts Damaged . | . . . . Bothacking | -11 -10 -9 -8 ------------ Run | Yrd Mat Mat Mat Used RIF Installer . | . . . . Robots Hacked . | . . . . Non-combat . | . . . . Combat . | . . . . Robot Hacks Applied . | . . . . Relay Couplers Released . | . . . . Fabnet Peak Effective % . | . . . . Robots Rewired . | . . . . Allies Hacked . | . . . . Hacks Repelled . | . . . . Allies | -11 -10 -9 -8 -------- Run | Yrd Mat Mat Mat Total Allies . | . . . . Largest Group . | . . . . Highest-Rated Group . | . . . . Highest-Rated Ally . | . . . . Total Orders . | . . . . Ally Attacks . | . . . . Total Damage . | . . . . Kills . | . . . . Allies Corrupted . | . . . . Allies Melted . | . . . . Intel | -11 -10 -9 -8 ------- Run | Yrd Mat Mat Mat Robot Analysis Total . | . . . . Derelict Logs Recovered . | . . . . Drone Launches . | . . . . Drone Recoveries . | . . . . Exploration | -11 -10 -9 -8 ------------- Run | Yrd Mat Mat Mat Turns Passed 2916 | 58 698 1157 1003 Spaces Moved 1750 | 57 392 833 468 Core 15 | 4 . 3 8 Treads 361 | . 47 . 314 Legs 22 | . 21 1 . Wheels 1348 | 53 324 825 146 Hover . | . . . . Flight 4 | . . 4 . Fastest Speed 50 | 50 80 80 80 Average Speed 107 | 77 105 94 136 Slowest Speed 400 | 80 190 400 400 Overloaded Moves . | . . . . Propulsion Burnouts . | . . . . Robots Hopped . | . . . . Cave-ins Triggered . | . . . . Exploration Rate (%) 48 | 3 72 86 34 Regions Visited 3 Branch Regions . Pre-discovered Areas . | . . . . Known Exits Taken 2 | . 1 1 . Unknown Exits Taken 1 | 1 . . . Scrap Searched . | . . . . Spaces Dug 1 | . . . 1 Terrain Destroyed 219 | . 8 171 40 Melee . | . . . . Projectile 4 | . . . 4 AOE 215 | . 8 171 36 Terrain Rammed . | . . . . Walls Destroyed . | . . . . Machines Disabled . | . . . . Actions | -11 -10 -9 -8 --------- Run | Yrd Mat Mat Mat Total 2291 | 67 530 1019 675 Wait 79 | . 15 7 57 Move 1747 | 56 391 832 468 Hop . | . . . . Pick Up 37 | 3 8 10 16 Fast Attach 46 | 7 3 19 17 Attach 19 | . 3 9 7 Detach 4 | 1 . 1 2 Swap 20 | . 5 9 6 Drop 43 | . 9 21 13 Fire 289 | . 94 107 88 Melee . | . . . . Ram 7 | . 2 4 1 Kick . | . . . . Crush . | . . . . Escape Stasis . | . . . . Rewire . | . . . . Trap . | . . . . Miscellaneous . | . . . . Route ------- -11/Scrapyard -10/Materials (discovered 3 exits: *Mat x3) -9/Materials (discovered 3 exits: *Mat x3) -8/Materials (discovered 1 exit: [*Fac]) History --------- Turn | Location | Event 2 | -11/Scrapyard | Met Revision 17 14 | -11/Scrapyard | Discovered new exit (range 15) 59 | -11/Scrapyard | Entered Materials 301 | -10/Materials | Build established: Mutant 355 | -10/Materials | Core integrity fell below 50% 535 | -10/Materials | Discovered new exit (range 14) 586 | -10/Materials | Discovered new exit (range 15) 702 | -10/Materials | Build established: Scavenger-Mutant 722 | -10/Materials | Discovered new exit (range 9) 756 | -10/Materials | Identified exit to Materials 757 | -10/Materials | Entered another Materials area 757 | -9/Materials | Evolved 2 slots: Utility x2 1191 | -9/Materials | Discovered new exit (range 7) 1200 | -9/Materials | Identified exit to Materials 1283 | -9/Materials | Build established: Mutant 1517 | -9/Materials | Discovered exit to Materials (range 12) 1623 | -9/Materials | Lost 6 parts (1p3n1u1w) 1731 | -9/Materials | Core integrity fell below 50% 1823 | -9/Materials | Discovered exit to Materials (range 16) 1914 | -9/Materials | Entered another Materials area 1914 | -8/Materials | Evolved 2 slots: Power x1, Propulsion x1 2117 | -8/Materials | Lost 8 parts (2p3n3w) 2308 | -8/Materials | Discovered new exit (range 16) 2896 | -8/Materials | Core integrity fell below 50% 2899 | -8/Materials | Core integrity fell below 20% 2917 | -8/Materials | Destroyed by G-47 Trooper with Particle Gun Last Messages --------------- 02908_ Overheating: Matter decay (-24). 02909_ Power failure, Lgt. Nuclear Core shutdown. 02909_ Overheating: System interference. 02909_ Assault Cannon temporarily disabled. 02909_ R-06 Scavenger collects Aluminum Leg. 02910_ Overheating: Nuclear Core damaged (-18). 02911_ U-05 Engineer builds a Wall. 02911_ Acquired Lgt. Nuclear Core. 02912_ Power failure, Nuclear Core shutdown. 02912_ Overheating: System interference. 02912_ Imp. Targeting Computer temporarily disabled. 02913_ Overheating: Imp. Targeting Computer damaged (-3). 02913_ Overheating: Lgt. Nuclear Core damaged (-2). 02914_ Acquired Imp. Heat Sink. 02914_ R-06 Scavenger collects Imp. Ion Engine. 02916_ K-01 Serf collects debris. Map ----- +----------------------------------------------------+ | ?????????????????????????????????????????????????? | | ?????????????????????????????????????????????????? | | ?????????????????????????????????????????????????? | | ?????????????????????????????????????????????????? | | ####?????????????????????????????????????????????? | | #????????????????????????########?????????????? | | " #????????????????????????# #?????????????? | | " #####????????????????????#! """ #######???????? | | " # #?????????########???# """ ## #???????? | | # #?????????# #???#! """ ## #???????? | | " # #?????????# #???# !## #???????? | | " + #?????????# """ #???# ! ## #???????? | | " # ########### """ #???####+#### #???????? | | # ## # """ #??????# + #???????? | | #### ## "T" # % #??????# # #???????? | | ### # ###+####??????# #[[ #???????? | | # [ /% #######???# #[[ #???????? | | + [*### # #???# ##+######???????? | | # """ #?# # """ #???# ## [ #???????? | | ### # """ #?# + """ #???# ## #???????? | | ??####### """ #?# # """ #???# ## " #???????? | | ????????# ### # #???# ##! " #???????? | | ????????############ / #???# ## " ########? | | ????????? # !# # #???#*## # #? | | ????????? # rk# ##+########=#####+### """ #? | | ?????????""" # =%t g== @%% % ]= #?# """ #? | | ?????????""" # #%% ############# #?# """ !#? | | ?????????""" # %#%r% # ## [%### ### #? | | ?????????""" # #w #### # ![%]# = #? | | ????????? # !# #??# %# [[[###+"#### | | ????????? ####### #??# "T" %/% ! % *=! | | ?????????########### #??# """ # ###%##### | | ????????? #??# # ###%##??? | | ????????? ############ #??######### ##?#!##??? | | ????????? # #???#####??????????# #??# ##### | | ????????? # #??????????????????# #?##!####! | | ????????? # #??????????????????# #?#"%"##! | | ????????? # #??????????????????# #?#" "## | | ????????????????????????????????######+##### ### | | ???????????????????????????????? # ! +% | | ??????????????????????????????? !# == # ^ | | ??????????????????????????????? # == ] # ^""" | | ??????????????????????????????? # = # ^""" | | ??????????????????????????????? ######## """ | | ???????????????????????????????# ######### ^ | | ???????????????????????????????# # ## | | ??????????????????????########## + ## "T" | | ??????????????????????# # # """ ## | | ??????????????????????# # # """ ## ! | | ??????????????????????# # # """ ## ##### | +----------------------------------------------------+ Best States ------------- Heat Dissipation 42 Energy Generation 23 Energy Capacity 405 Matter Stores 300 Matter Capacity 300 Sight Range 16 Terrain Scan Density 10 Armor Coverage 150 Propulsion Shielding 66 Evasion (%) 44 Targeting Accuracy 6 Recoil Reduction 3 Offensive Hacking 10 Item Schematics ----------------- Hvy. Particle Cannon | -8/Materials | Scanalyzed Robot Schematics ------------------ None Fabricated ------------ Nothing Alien Tech Used ----------------- None Achievements -------------- None Challenges ------------ None Game ------ Seed MagneticThermalThrower Manual? 0 Play Time 00:38:09 Cumulative 30.5 hours Start 2024.07.09 @ 20:48:31 End 2024.07.09 @ 21:26:53 Sessions 1 Manual Loads 0 Difficulty Rogue Special Mode None Game No. 42 Rogue 42 Adventurer 0 Explorer 0 Win Type - Total 0 Types 0/0/0/0/0/0/0/0/0 Lore% 15 Gallery% 25 Achievement% 21 Wizard Run 0 Options --------- Layout 2 ASCII 0 Keyboard 0 Movement Mouse Keybinds 0 Fullscreen 2 Font 24/Crisp Map View 50x44 Zoom Use 0% Tactical HUD 1 Map Filters NONE Filters NONE Steam 1 RUN: 47985297-dc24-433b-9985-95543f21f82c